Workbook

Sheet GENERAL
A1: MODBUS TABLE ORGANIZATION
A2: Starting Address of the Group Registers (Dec) | B2: Starting Address of the Group Registers (Hex) | C2: System Version (Release) | D2: System Version (Build) | E2: Group Name (Text) | F2: Group Code (Hex) | G2: Group Complexity (Hex) | H2: Group Version (Hex)
A3: =HEX2DEC(B3) -> 768 | B3: 300 | E3: Device identifier
A4: 1008 | B4: 3F0 | E4: Input Reading - Only with F4N102 Module
A5: 1016 | B5: 3F8 | E5: Temepratures - Only with F4N106 Module
A6: 1296 | B6: 510 | E6: Reset of one Pulse Couter
A7: 4096 | B7: 1000 | E7: Measures
A8: 4207 | B8: 106f | E8: Open / Close a relays of I/O Module
A9: 4608 | B9: 1200 | E9: Settings
A10: 5376 | B10: 1500 | E10: Max. & Min.
A11: =HEX2DEC(B11) -> 5424 | B11: 1530 | E11: Average Measured values - Scaled
A12: 5504 | B12: 1580 | E12: Crest Factor - Only with F4N107 Module
A13: 5888 | B13: 1700 | E13: Max. & Min.
A14: 8192 | B14: 2000 | E14: Standard Setup parameters (read & write 16 byte at once)
A15: 8448 | B15: 2100 | E15: Programming Parameters of Module on Slot B
A16: 8704 | B16: 2200 | E16: Programming Parameters of Module on Slot C
A17: 8960 | B17: 2300 | E17: Programming Parameters of Module on Slot D
A18: 12544 | B18: 3100 | E18: Set Relay on LOCAL or REMOTE control
A19: 12800 | B19: 3200 | E19: Open / Close a relays of I/O Module
A20: 14080 | B20: 3700 | E20: Real time data: bit mapped variable reading/writing
A21: 20480 | B21: 5000 | E21: Request of integrated data (energy and average power)
A22: =HEX2DEC(B22) -> 20496 | B22: 5010 | E22: Request of real time data
A23: 20768 | B23: 5120 | E23: Stored data
A24: 28672 | B24: 7000 | E24: Harmonics - Only with F4N107 Module
A28: MODBUS PROTOCOL DETAILS
A29: Function Code (Dec) | B29: Exception Codes (Dec) | C29: Data Encoding
A30: 3 | B30: 1, 2, 3 | C30: "Big Endian" (most significant byte first)
A31: 16 | B31: 1, 2, 3
A33: MODBUS OVER SERIAL DETAILS
A34: Physical Layer | B34: Trasmission Modes | C34: Device Addressing | D34: Baud Rates (bit/s) | E34: Data Bits | F34: Data bits trasmission sequence | G34: Parity | H34: Stop Bits
A35: standard EIA/TIA 485 (RS-485) two-wire configuration | B35: RTU | C35: 1÷247 | D35: programmable | E35: 8 | F35: Least significant bit first | G35: programmable | H35: 1
A37: MASTER/SLAVE COMMUNICATION TIMING
A38: Timer Descrtiption | B38: Timer Value (msec)
A39: Inter-character time-out | B39: Max. 20
A40: Response delay (from master request) | B40: 20÷300
A41: Delay Time (between two master trasmissions) | B41: < 20
A43: REFER ALSO TO: | B43: www.modbus.org | C43: - MODBUS over serial line specification and implementation guide V1.02
C44: - MODBUS APPLICATION PROTOCOL SPECIFICATION V1.1b
A46: NOTE: | B46: File and printed copies of this document are not subject to document change control.

Sheet DISCRETE INPUT - Bits (R)
A1: Register Number | B1: Register Address (Dec) | C1: Register Address (Hex) | D1: Dimension [bit] | E1: Description | F1: Note | G1: Read Function Codes (Dec) | H1: Data Storing (2)
E2: (no DISCRETE INPUTS availables)

Sheet COILS - Bits (R&W)
A1: Register Number | B1: Register Address (Dec) | C1: Register Address (Hex) | D1: Dimension [bit] | E1: Description | F1: Note | G1: Read Function Codes (Dec) | H1: Write Function Codes (Dec) | I1: Data Storing (2)
E2: (no COILS availables)

Sheet INPUT REGISTERS - Words (R)
A1: Register Number | B1: Register Address (Dec) | C1: Register Address (Hex) | D1: Dimension [word] | E1: Bit Position | F1: Description | G1: Type | H1: Scale | I1: Unit | J1: Range | K1: Note | L1: Read Function Code (Dec) | M1: Data Storing (2)
A2: =B2+1 -> 769 | B2: =GENERAL!A3 -> 768 | C2: =GENERAL!B3 -> 300 | D2: =SUM(D3:D3) -> 1 | F2: =GENERAL!E3 -> Device identifier
A3: =B3+1 -> 769 | B3: 768 | C3: =DEC2HEX(B3) -> 300 | D3: 1 | F3: Device identifier | G3: unsigned integer | H3: 1 | I3: - | K3: The device returns 1101h | L3: =3 -> 3
A4: =B4+1 -> 1009 | B4: =GENERAL!A4 -> 1008 | C4: =GENERAL!B4 -> 3F0 | D4: =SUM(D5:D5) -> 2 | F4: =GENERAL!E4 -> Input Reading - Only with F4N102 Module
A5: =B5+1 -> 1009 | B5: 1008 | C5: =DEC2HEX(B5) -> 3F0 | D5: 2 | F5: Pulse counting on Input 1 on Slot C | G5: unsigned integer | H5: 1 | I5: - | L5: =3 -> 3
A6: =B6+1 -> 1013 | B6: 1012 | C6: 3F4 | D6: 2 | F6: Pulse counting on Input 2 on Slot C | G6: unsigned integer | H6: 1 | I6: - | L6: =3 -> 3
A7: 1017 | B7: 1016 | C7: 3F8 | D7: 2 | F7: Pulse counting on Input 1 on Slot D | G7: unsigned integer | H7: 1 | I7: - | L7: =3 -> 3
A8: 1021 | B8: 1020 | C8: 3FC | D8: 2 | F8: Pulse counting on Input 2 on Slot D | G8: unsigned integer | H8: 1 | I8: - | L8: =3 -> 3
A9: 1025 | B9: 1024 | C9: 400 | D9: 1 | F9: State of Input 1 on Slot C | G9: unsigned integer | H9: 1 | I9: - | J9: 0, 1 | K9: 0: open, 1: close | L9: =3 -> 3
A10: 1026 | B10: =B9+D9 -> 1025 | C10: 401 | D10: 1 | F10: State of Input 2 on Slot C | G10: unsigned integer | H10: 1 | I10: - | J10: 0, 1 | K10: 0: open, 1: close | L10: =3 -> 3
A11: 1027 | B11: =B10+D10 -> 1026 | C11: 402 | D11: 1 | F11: State of Input 1 on Slot D | G11: unsigned integer | H11: 1 | I11: - | J11: 0, 1 | K11: 0: open, 1: close | L11: =3 -> 3
A12: 1028 | B12: 1027 | C12: 403 | D12: 1 | F12: State of Input 2 on Slot D | G12: unsigned integer | H12: 1 | I12: - | J12: 0, 1 | K12: 0: open, 1: close | L12: =3 -> 3
A13: =B13+1 -> 1017 | B13: =GENERAL!A5 -> 1016 | C13: =GENERAL!B5 -> 3F8 | D13: =SUM(D14:D14) -> 2 | F13: =GENERAL!E5 -> Temepratures - Only with F4N106 Module
A14: =B14+1 -> 1017 | B14: 1016 | C14: =DEC2HEX(B14) -> 3F8 | D14: 2 | F14: Temeprature Channel 1 | G14: unsigned integer | H14: 0.01 | I14: °C | K14: If Pt100 sensor is not present the device answers 9C40h | L14: =3 -> 3
A15: =B15+1 -> 1021 | B15: 1020 | C15: =DEC2HEX(B15) -> 3FC | D15: 2 | F15: Temeprature Channel 2 | G15: unsigned integer | H15: 0.01 | I15: °C | L15: =3 -> 3
A16: 1027 | B16: 1026 | C16: 402 | D16: 1 | F16: Sign of Temperature Ch 1 | G16: unsigned integer | H16: 1 | I16: - | J16: 0, 1 | K16: 0: positive, 1: negative | L16: =3 -> 3
A17: 1028 | B17: 1027 | C17: 403 | D17: 1 | F17: Sign of Temperature Ch 2 | G17: unsigned integer | H17: 1 | I17: - | J17: 0, 1 | K17: 0: positive, 1: negative | L17: =3 -> 3
A18: =B18+1 -> 4097 | B18: =GENERAL!A7 -> 4096 | C18: =GENERAL!B7 -> 1000 | D18: =SUM(D19:D93) -> 124 | F18: =GENERAL!E7 -> Measures
A19: =B19+1 -> 4097 | B19: =B18 -> 4096 | C19: =DEC2HEX(B19) -> 1000 | D19: 2 | F19: Phase 1 : phase voltage | G19: unsigned integer | H19: 1 | I19: mV | L19: =3 -> 3
A20: =B20+1 -> 4099 | B20: =B19+D19 -> 4098 | C20: 1002 | D20: 2 | F20: Phase 2 : phase voltage | G20: unsigned integer | H20: 1 | I20: mV | L20: =3 -> 3
A21: 4101 | B21: =B20+D20 -> 4100 | C21: 1004 | D21: 2 | F21: Phase 3 : phase voltage | G21: unsigned integer | H21: 1 | I21: mV | L21: =3 -> 3
A22: 4103 | B22: 4102 | C22: 1006 | D22: 2 | F22: Phase 1 : current | G22: unsigned integer | H22: 1 | I22: mA | L22: =3 -> 3
A23: 4105 | B23: 4104 | C23: 1008 | D23: 2 | F23: Phase 2 : current | G23: unsigned integer | H23: 1 | I23: mA | L23: =3 -> 3
A24: 4107 | B24: 4106 | C24: 100A | D24: 2 | F24: Phase 3 : current | G24: unsigned integer | H24: 1 | I24: mA | L24: =3 -> 3
A25: 4109 | B25: 4108 | C25: 100C | D25: 2 | F25: Neutral current | G25: unsigned integer | H25: 1 | I25: mA | L25: =3 -> 3
A26: 4111 | B26: =B25+D25 -> 4110 | C26: 100E | D26: 2 | F26: Chained voltage : L1-L2 | G26: unsigned integer | H26: 1 | I26: mV | L26: =3 -> 3
A27: 4113 | B27: 4112 | C27: 1010 | D27: 2 | F27: Chained voltage : L2-L3 | G27: unsigned integer | H27: 1 | I27: mV | L27: =3 -> 3
A28: 4115 | B28: 4114 | C28: 1012 | D28: 2 | F28: Chained voltage : L3-L1 | G28: unsigned integer | H28: 1 | I28: mV | L28: =3 -> 3
A29: 4117 | B29: 4116 | C29: 1014 | D29: 2 | F29: 3-phase : active power | G29: unsigned integer | H29: 1, 0.01 | I29: W | K29: See Note 1 | L29: =3 -> 3
A30: 4119 | B30: 4118 | C30: 1016 | D30: 2 | F30: 3-phase : reactive power | G30: unsigned integer | H30: 1, 0.01 | I30: var | K30: See Note 1 | L30: =3 -> 3
A31: 4121 | B31: 4120 | C31: 1018 | D31: 2 | F31: 3-phase : apparent power | G31: unsigned integer | H31: 1, 0.01 | I31: VA | K31: See Note 1 | L31: =3 -> 3
A32: 4123 | B32: 4122 | C32: 101A | D32: 1 | F32: 3-phase : sign of active power | G32: unsigned integer | H32: 1 | I32: - | J32: 0, 1 | K32: 0=positive, 1=negative | L32: =3 -> 3
A33: 4124 | B33: 4123 | C33: 101B | D33: 1 | F33: 3-phase : sign of reactive power | G33: unsigned integer | H33: 1 | I33: - | J33: 0, 1 | K33: 0=positive, 1=negative | L33: =3 -> 3
A34: 4125 | B34: 4124 | C34: 101C | D34: 2 | F34: 3-phase : positive active energy | G34: unsigned integer | H34: 1, 10, 100, 1.000, 10.000, 100.000 | I34: Wh | K34: See Note 2 | L34: =3 -> 3 | M34: Y
A35: 4127 | B35: 4126 | C35: 101E | D35: 2 | F35: 3-phase : positive reactive energy | G35: unsigned integer | H35: 1, 10, 100, 1.000, 10.000, 100.000 | I35: varh | K35: See Note 2 | L35: =3 -> 3 | M35: Y
A36: 4129 | B36: 4128 | C36: 1020 | D36: 2 | F36: 3-phase : negative active energy | G36: unsigned integer | H36: 1, 10, 100, 1.000, 10.000, 100.000 | I36: Wh | K36: See Note 2 | L36: =3 -> 3 | M36: Y
A37: 4131 | B37: 4130 | C37: 1022 | D37: 2 | F37: 3-phase : negative reactive energy | G37: unsigned integer | H37: 1, 10, 100, 1.000, 10.000, 100.000 | I37: varh | K37: See Note 2 | L37: =3 -> 3 | M37: Y
A38: 4133 | B38: 4132 | C38: 1024 | D38: 1 | F38: 3-phase : power factor | G38: signed integer | H38: 0.01 | I38: - | L38: =3 -> 3
A39: 4134 | B39: 4133 | C39: 1025 | D39: 1 | F39: 3-phase : sector of power factor (cap or ind) | G39: unsigned integer | H39: 1 | I39: - | J39: 0, 1, 2 | K39: 0="PF=1", 1="ind" (L), 2="cap" (C) | L39: =3 -> 3
A40: 4135 | B40: 4134 | C40: 1026 | D40: 1 | F40: Frequency | G40: unsigned integer | H40: 0.1 | I40: Hz | L40: =3 -> 3
A41: 4136 | B41: 4135 | C41: 1027 | D41: 2 | F41: 3-phase : average power | G41: unsigned integer | H41: 1, 0.01 | I41: W | K41: See Note 1 | L41: =3 -> 3
A42: 4138 | B42: 4137 | C42: 1029 | D42: 2 | F42: 3-phase : peak maximum demand | G42: unsigned integer | H42: 1, 0.01 | I42: W | K42: See Note 1 | L42: =3 -> 3 | M42: Y
A43: 4140 | B43: 4139 | C43: 102B | D43: 1 | F43: Time counter for average power | G43: unsigned integer | H43: 1 | I43: min | L43: =3 -> 3
A44: 4141 | B44: 4140 | C44: 102C | D44: 2 | F44: Phase 1 : active power | G44: unsigned integer | H44: 1, 0.01 | I44: W | K44: See Note 1 | L44: =3 -> 3
A45: 4143 | B45: 4142 | C45: 102E | D45: 2 | F45: Phase 2 : active power | G45: unsigned integer | H45: 1, 0.01 | I45: W | K45: See Note 1 | L45: =3 -> 3
A46: 4145 | B46: 4144 | C46: 1030 | D46: 2 | F46: Phase 3 : active power | G46: unsigned integer | H46: 1, 0.01 | I46: W | K46: See Note 1 | L46: =3 -> 3
A47: 4147 | B47: 4146 | C47: 1032 | D47: 1 | F47: Phase 1 : sign of active power | G47: unsigned integer | I47: - | J47: 0, 1 | K47: 0=positive, 1=negative | L47: =3 -> 3
A48: 4148 | B48: 4147 | C48: 1033 | D48: 1 | F48: Phase 2 : sign of active power | G48: unsigned integer | I48: - | J48: 0, 1 | K48: 0=positive, 1=negative | L48: =3 -> 3
A49: 4149 | B49: 4148 | C49: 1034 | D49: 1 | F49: Phase 3 : sign of active power | G49: unsigned integer | I49: - | J49: 0, 1 | K49: 0=positive, 1=negative | L49: =3 -> 3
A50: 4150 | B50: 4149 | C50: 1035 | D50: 2 | F50: Phase 1 : reactive power | G50: unsigned integer | H50: 1, 0.01 | I50: var | K50: See Note 1 | L50: =3 -> 3
A51: 4152 | B51: 4151 | C51: 1037 | D51: 2 | F51: Phase 2 : reactive power | G51: unsigned integer | H51: 1, 0.01 | I51: var | K51: See Note 1 | L51: =3 -> 3
A52: 4154 | B52: 4153 | C52: 1039 | D52: 2 | F52: Phase 3 : reactive power | G52: unsigned integer | H52: 1, 0.01 | I52: var | K52: See Note 1 | L52: =3 -> 3
A53: 4156 | B53: 4155 | C53: 103B | D53: 1 | F53: Phase 1 : sign of reactive power | G53: unsigned integer | I53: - | J53: 0, 1 | K53: 0=positive, 1=negative | L53: =3 -> 3
A54: 4157 | B54: 4156 | C54: 103C | D54: 1 | F54: Phase 2 : sign of reactive power | G54: unsigned integer | I54: - | J54: 0, 1 | K54: 0=positive, 1=negative | L54: =3 -> 3
A55: 4158 | B55: 4157 | C55: 103D | D55: 1 | F55: Phase 3 : sign of reactive power | G55: unsigned integer | I55: - | J55: 0, 1 | K55: 0=positive, 1=negative | L55: =3 -> 3
A56: =B56+1 -> 4159 | B56: =B55+D55 -> 4158 | C56: =DEC2HEX(B56) -> 103E | D56: 2 | F56: Phase 1 : apparent power | G56: unsigned integer | H56: 1, 0.01 | I56: VA | K56: See Note 1 | L56: =3 -> 3
A57: 4161 | B57: 4160 | C57: 1040 | D57: 2 | F57: Phase 2 : apparent power | G57: unsigned integer | H57: 1, 0.01 | I57: VA | K57: See Note 1 | L57: =3 -> 3
A58: 4163 | B58: 4162 | C58: 1042 | D58: 2 | F58: Phase 3 : apparent power | G58: unsigned integer | H58: 1, 0.01 | I58: VA | K58: See Note 1 | L58: =3 -> 3
A59: =B59+1 -> 4165 | B59: =B58+D58 -> 4164 | C59: =DEC2HEX(B59) -> 1044 | D59: 1 | F59: Phase 1 : power factor | G59: signed integer | H59: 0.01 | I59: - | L59: =3 -> 3
A60: 4166 | B60: 4165 | C60: 1045 | D60: 1 | F60: Phase 2 : power factor | G60: signed integer | H60: 0.01 | I60: - | L60: =3 -> 3
A61: 4167 | B61: 4166 | C61: 1046 | D61: 1 | F61: Phase 3 : power factor | G61: signed integer | H61: 0.01 | I61: - | L61: =3 -> 3
A62: =B62+1 -> 4168 | B62: =B61+D61 -> 4167 | C62: =DEC2HEX(B62) -> 1047 | D62: 1 | F62: Phase 1 : sector of power factor (cap or ind) | G62: unsigned integer | H62: 1 | I62: - | J62: 0, 1, 2 | K62: 0="PF=1", 1="ind" (L), 2="cap" (C) | L62: =3 -> 3
A63: 4169 | B63: 4168 | C63: 1048 | D63: 1 | F63: Phase 2 : sector of power factor (cap or ind) | G63: unsigned integer | H63: 1 | I63: - | J63: 0, 1, 2 | K63: 0="PF=1", 1="ind" (L), 2="cap" (C) | L63: =3 -> 3
A64: 4170 | B64: 4169 | C64: 1049 | D64: 1 | F64: Phase 3 : sector of power factor (cap or ind) | G64: unsigned integer | H64: 1 | I64: - | J64: 0, 1, 2 | K64: 0="PF=1", 1="ind" (L), 2="cap" (C) | L64: =3 -> 3
A65: =B65+1 -> 4171 | B65: =B64+D64 -> 4170 | C65: =DEC2HEX(B65) -> 104A | D65: 1 | F65: Phase 1 : THD V1 | G65: unsigned integer | H65: 0.1 | I65: % | K65: See Note 3 | L65: =3 -> 3
A66: =B66+1 -> 4172 | B66: =B65+D65 -> 4171 | C66: =DEC2HEX(B66) -> 104B | D66: 1 | F66: Phase 2 : THD V2 | G66: unsigned integer | H66: 0.1 | I66: % | K66: See Note 3 | L66: =3 -> 3
A67: 4173 | B67: 4172 | C67: 104C | D67: 1 | F67: Phase 3 : THD V3 | G67: unsigned integer | H67: 0.1 | I67: % | K67: See Note 3 | L67: =3 -> 3
A68: 4174 | B68: 4173 | C68: 104D | D68: 1 | F68: Phase 1 : THD I1 | G68: unsigned integer | H68: 0.1 | I68: % | L68: =3 -> 3
A69: 4175 | B69: 4174 | C69: 104E | D69: 1 | F69: Phase 2 : THD I2 | G69: unsigned integer | H69: 0.1 | I69: % | L69: =3 -> 3
A70: 4176 | B70: 4175 | C70: 104F | D70: 1 | F70: Phase 3 : THD I3 | G70: unsigned integer | H70: 0.1 | I70: % | L70: =3 -> 3
A71: 4177 | B71: 4176 | C71: 1050 | D71: 2 | F71: Phase 1 : I1 average | G71: unsigned integer | H71: 1 | I71: mA | L71: =3 -> 3
A72: =B72+1 -> 4179 | B72: =B71+D71 -> 4178 | C72: =DEC2HEX(B72) -> 1052 | D72: 2 | F72: Phase 2 : I2 average | G72: unsigned integer | H72: 1 | I72: mA | L72: =3 -> 3
A73: 4181 | B73: 4180 | C73: 1054 | D73: 2 | F73: Phase 3 : I3 average | G73: unsigned integer | H73: 1 | I73: mA | L73: =3 -> 3
A74: 4183 | B74: 4182 | C74: 1056 | D74: 2 | F74: Phase 1 : I1 peak Max. | G74: unsigned integer | H74: 1 | I74: mA | L74: =3 -> 3
A75: =B75+1 -> 4185 | B75: =B74+D74 -> 4184 | C75: =DEC2HEX(B75) -> 1058 | D75: 2 | F75: Phase 2 : I2 peak Max. | G75: unsigned integer | H75: 1 | I75: mA | L75: =3 -> 3
A76: 4187 | B76: 4186 | C76: 105A | D76: 2 | F76: Phase 3 : I3 peak Max. | G76: unsigned integer | H76: 1 | I76: mA | L76: =3 -> 3
A77: =B77+1 -> 4189 | B77: =B76+D76 -> 4188 | C77: =DEC2HEX(B77) -> 105C | D77: 2 | F77: 3-phase : I average | G77: unsigned integer | H77: 1 | I77: mA | K77: (I1+I2+I3)/3 | L77: =3 -> 3
A78: 4191 | B78: 4190 | C78: 105E | D78: 2 | F78: Phase 1 : V1 min. | G78: unsigned integer | H78: 1 | I78: mV | K78: See Note 3 | L78: =3 -> 3
A79: 4193 | B79: 4192 | C79: 1060 | D79: 2 | F79: Phase 2 : V2 min. | G79: unsigned integer | H79: 1 | I79: mV | K79: See Note 3 | L79: =3 -> 3
A80: 4195 | B80: 4194 | C80: 1062 | D80: 2 | F80: Phase 3 : V3 min. | G80: unsigned integer | H80: 1 | I80: mV | K80: See Note 3 | L80: =3 -> 3
A81: =B81+1 -> 4197 | B81: =B80+D80 -> 4196 | C81: =DEC2HEX(B81) -> 1064 | D81: 2 | F81: Phase 1 : V1 Max. | G81: unsigned integer | H81: 1 | I81: mV | K81: See Note 3 | L81: =3 -> 3
A82: 4199 | B82: 4198 | C82: 1066 | D82: 2 | F82: Phase 2 : V2 Max. | G82: unsigned integer | H82: 1 | I82: mV | K82: See Note 3 | L82: =3 -> 3
A83: 4201 | B83: 4200 | C83: 1068 | D83: 2 | F83: Phase 3 : V3 Max. | G83: unsigned integer | H83: 1 | I83: mV | K83: See Note 3 | L83: =3 -> 3
A84: =B84+1 -> 4203 | B84: =B83+D83 -> 4202 | C84: =DEC2HEX(B84) -> 106A | D84: 2 | F84: 3-phase : partial active energy | G84: unsigned integer | H84: 1, 10, 100, 1000, 10.000, 100.000 | I84: Wh | K84: See Note 2 | L84: =3 -> 3
A85: 4205 | B85: 4204 | C85: 106C | D85: 2 | F85: 3-phase : partial reactive energy | G85: unsigned integer | H85: 1, 10, 100, 1000, 10.000, 100.000 | I85: varh | K85: See Note 2 | L85: =3 -> 3
A86: =B86+1 -> 4207 | B86: =B85+D85 -> 4206 | C86: =DEC2HEX(B86) -> 106E | D86: 1 | F86: Operating timer counter | G86: unsigned integer | H86: 1 | I86: h | L86: =3 -> 3
A87: =B87+1 -> 4208 | B87: =B86+D86 -> 4207 | C87: =DEC2HEX(B87) -> 106F | D87: 1 | F87: Output status | G87: unsigned integer | H87: - | I87: - | K87: if module(s) is (are) installed See Note 4 | L87: =3 -> 3
A88: 4209 | B88: 4208 | C88: 1070 | D88: 2 | F88: 3-phase : average active power | G88: unsigned integer | H88: 1, 0.01 | I88: W | K88: See Note 1 | L88: =3 -> 3
A89: 4211 | B89: 4210 | C89: 1072 | D89: 2 | F89: 3-phase : average reactive power | G89: unsigned integer | H89: 1, 0.01 | I89: var | K89: See Note 1 | L89: =3 -> 3
A90: 4213 | B90: 4212 | C90: 1074 | D90: 2 | F90: 3-phase : average apparent power | G90: unsigned integer | H90: 1, 0.01 | I90: VA | K90: See Note 1 | L90: =3 -> 3
A91: =B91+1 -> 4215 | B91: =B90+D90 -> 4214 | C91: =DEC2HEX(B91) -> 1076 | D91: 2 | F91: 3-phase : active PMD power | G91: unsigned integer | H91: 1, 0.01 | I91: W | K91: See Note 1 | L91: =3 -> 3
A92: 4217 | B92: 4216 | C92: 1078 | D92: 2 | F92: 3-phase : reactive PMD power | G92: unsigned integer | H92: 1, 0.01 | I92: var | K92: See Note 1 | L92: =3 -> 3
A93: 4219 | B93: 4218 | C93: 107A | D93: 2 | F93: 3-phase : apparent PMD power | G93: unsigned integer | H93: 1, 0.01 | I93: VA | K93: See Note 1 | L93: =3 -> 3
A94: =B94+1 -> 4609 | B94: =GENERAL!A9 -> 4608 | C94: =GENERAL!B9 -> 1200 | D94: =SUM(D95:D99) -> 6 | F94: =GENERAL!E9 -> Settings
A95: =B95+1 -> 4609 | B95: 4608 | C95: =DEC2HEX(B95) -> 1200 | D95: 1 | F95: Current transformer ratio (CT) | G95: unsigned integer | H95: 1 | I95: - | L95: =3 -> 3 | M95: Y
A96: =B96+1 -> 4610 | B96: =B95+D95 -> 4609 | C96: =DEC2HEX(B96) -> 1201 | D96: 1 | F96: Voltage transformer ratio (VT) | G96: unsigned integer | H96: 0.01 | I96: - | L96: =3 -> 3 | M96: Y
A97: =B97+1 -> 4611 | B97: =B96+D96 -> 4610 | C97: =DEC2HEX(B97) -> 1202 | D97: 2 | F97: Device Configuration | G97: unsigned integer | H97: - | I97: - | K97: See Note 5 | L97: =3 -> 3 | M97: Y
A98: =B98+1 -> 4613 | B98: =B97+D97 -> 4612 | C98: =DEC2HEX(B98) -> 1204 | D98: 1 | F98: RESERVED (returns 0000h) | L98: =3 -> 3
A99: 4614 | B99: 4613 | C99: 1205 | D99: 1 | F99: Voltages sequence diagnostic | G99: unsigned integer | H99: 1 | I99: - | J99: 0, 1, 2 | K99: 0: if single phase insertion 1: Ok 2: Error | L99: 3
A100: =B100+1 -> 5377 | B100: =GENERAL!A10 -> 5376 | C100: =GENERAL!B10 -> 1500 | D100: =SUM(D101:D124) -> 48 | F100: =GENERAL!E10 -> Max. & Min.
A101: =B101+1 -> 5377 | B101: 5376 | C101: 1500 | D101: 2 | F101: Low Positive Active Energy | G101: unsigned integer | H101: =1 -> 1 | I101: Wh | L101: =3 -> 3
A102: =B102+1 -> 5379 | B102: =B101+D101 -> 5378 | C102: =DEC2HEX(B102) -> 1502 | D102: 2 | F102: High Positive Active Energy | G102: unsigned integer | H102: =1 -> 1 | I102: MWh | L102: =3 -> 3
A103: =B103+1 -> 5381 | B103: =B102+D102 -> 5380 | C103: =DEC2HEX(B103) -> 1504 | D103: 2 | F103: Low Positive Reactive Energy | G103: unsigned integer | H103: =1 -> 1 | I103: varh | L103: =3 -> 3
A104: 5383 | B104: 5382 | C104: 1506 | D104: 2 | F104: High Positive Reactive Energy | G104: unsigned integer | H104: =1 -> 1 | I104: Mvarh | L104: =3 -> 3
A105: 5385 | B105: 5384 | C105: 1508 | D105: 2 | F105: Low Negative Active Energy | G105: unsigned integer | H105: =1 -> 1 | I105: Wh | L105: =3 -> 3
A106: 5387 | B106: 5386 | C106: 150A | D106: 2 | F106: High Negative Active Energy | G106: unsigned integer | H106: =1 -> 1 | I106: MWh | L106: =3 -> 3
A107: 5389 | B107: 5388 | C107: 150C | D107: 2 | F107: Low Negative Reactive Energy | G107: unsigned integer | H107: =1 -> 1 | I107: varh | L107: =3 -> 3
A108: 5391 | B108: 5390 | C108: 150E | D108: 2 | F108: High Negative Reactive Energy | G108: unsigned integer | H108: =1 -> 1 | I108: Mvarh | L108: =3 -> 3
A109: 5393 | B109: 5392 | C109: 1510 | D109: 2 | F109: Low Partial Active Energy | G109: unsigned integer | H109: =1 -> 1 | I109: Wh | L109: =3 -> 3
A110: 5395 | B110: 5394 | C110: 1512 | D110: 2 | F110: High Partial Active Energy | G110: unsigned integer | H110: =1 -> 1 | I110: MWh | L110: =3 -> 3
A111: 5397 | B111: 5396 | C111: 1514 | D111: 2 | F111: Low Partial Reactive Energy | G111: unsigned integer | H111: =1 -> 1 | I111: varh | L111: =3 -> 3
A112: 5399 | B112: 5398 | C112: 1516 | D112: 2 | F112: High Partial Reactive Energy | G112: unsigned integer | H112: =1 -> 1 | I112: Mvarh | L112: =3 -> 3
A113: 5401 | B113: 5400 | C113: 1518 | D113: 2 | F113: Signed Total active power | G113: signed integer | H113: 1 | I113: W | L113: =3 -> 3
A114: 5403 | B114: 5402 | C114: 151A | D114: 2 | F114: Signed Total reactive power | G114: signed integer | H114: 1 | I114: var | L114: =3 -> 3
A115: 5405 | B115: 5404 | C115: 151C | D115: 2 | F115: Signed phase1 active power | G115: signed integer | H115: 1 | I115: W | L115: =3 -> 3
A116: 5407 | B116: 5406 | C116: 151E | D116: 2 | F116: Signed phase2 active power | G116: signed integer | H116: 1 | I116: W | L116: =3 -> 3
A117: =B117+1 -> 5409 | B117: =B116+D116 -> 5408 | C117: =DEC2HEX(B117) -> 1520 | D117: 2 | F117: Signed phase3 active power | G117: signed integer | H117: 1 | I117: W | L117: =3 -> 3
A118: =B118+1 -> 5411 | B118: =B117+D117 -> 5410 | C118: =DEC2HEX(B118) -> 1522 | D118: 2 | F118: Signed phase1 reactive power | G118: signed integer | H118: 1 | I118: Var | L118: =3 -> 3
A119: 5413 | B119: 5412 | C119: 1524 | D119: 2 | F119: Signed phase2 reactive power | G119: signed integer | H119: 1 | I119: Var | L119: =3 -> 3
A120: 5415 | B120: 5414 | C120: 1526 | D120: 2 | F120: Signed phase3 reactive power | G120: signed integer | H120: 1 | I120: var | L120: =3 -> 3
A121: 5417 | B121: 5416 | C121: 1528 | D121: 2 | F121: Signed total Power Factor | G121: signed integer | H121: 0.001 | I121: - | L121: =3 -> 3
A122: 5419 | B122: 5418 | C122: 152A | D122: 2 | F122: Signed phase1 Power Factor | G122: signed integer | H122: 0.001 | I122: - | L122: =3 -> 3
A123: 5421 | B123: 5420 | C123: 152C | D123: 2 | F123: Signed phase2 Power Factor | G123: signed integer | H123: 0.001 | I123: - | L123: =3 -> 3
A124: 5423 | B124: 5422 | C124: 152E | D124: 2 | F124: Signed phase3 Power Factor | G124: signed integer | H124: 0.001 | I124: - | L124: =3 -> 3
A125: =B125+1 -> 5425 | B125: =GENERAL!A11 -> 5424 | C125: =GENERAL!B11 -> 1530 | D125: =SUM(D126:D132) -> 14 | F125: =GENERAL!E11 -> Average Measured values - Scaled
A126: =B126+1 -> 5425 | B126: 5424 | C126: =DEC2HEX(B126) -> 1530 | D126: 2 | F126: Total Apparent power | G126: unsigned integer | H126: =1 -> 1 | I126: VA | L126: =3 -> 3
A127: 5427 | B127: =B126+D126 -> 5426 | C127: 1532 | D127: 2 | F127: 3-phase : average active power | G127: unsigned integer | H127: 0.01 | I127: W | L127: =3 -> 3
A128: 5429 | B128: 5428 | C128: 1534 | D128: 2 | F128: 3-phase : average reactive power | G128: unsigned integer | H128: 0.01 | I128: var | L128: =3 -> 3
A129: 5431 | B129: 5430 | C129: 1536 | D129: 2 | F129: 3-phase : average apparent power | G129: unsigned integer | H129: 0.01 | I129: VA | L129: =3 -> 3
A130: =B130+1 -> 5433 | B130: =B129+D129 -> 5432 | C130: =DEC2HEX(B130) -> 1538 | D130: 2 | F130: 3-phase : max active power | G130: unsigned integer | H130: 0.01 | I130: W | L130: =3 -> 3
A131: 5435 | B131: 5434 | C131: 153A | D131: 2 | F131: 3-phase : max reactive power | G131: unsigned integer | H131: 0.01 | I131: var | L131: =3 -> 3
A132: 5437 | B132: 5436 | C132: 153C | D132: 2 | F132: 3-phase : max apparent power | G132: unsigned integer | H132: 0.01 | I132: VA | L132: =3 -> 3
A133: =B133+1 -> 5505 | B133: =GENERAL!A12 -> 5504 | C133: =GENERAL!B12 -> 1580 | D133: =SUM(D134:D142) -> 9 | F133: =GENERAL!E12 -> Crest Factor - Only with F4N107 Module
A134: 5505 | B134: 5504 | C134: =DEC2HEX(B134) -> 1580 | D134: 1 | F134: Phase1 voltage crest factor | G134: unsigned integer | H134: 0.001 | I134: - | L134: =3 -> 3
A135: =B135+1 -> 5506 | B135: =B134+D134 -> 5505 | C135: =DEC2HEX(B135) -> 1581 | D135: 1 | F135: Phase2 voltage crest factor | G135: unsigned integer | H135: 0.001 | I135: - | L135: =3 -> 3
A136: 5507 | B136: 5506 | C136: 1582 | D136: 1 | F136: Phase3 voltage crest factor | G136: unsigned integer | H136: 0.001 | I136: - | L136: =3 -> 3
A137: 5508 | B137: 5507 | C137: 1583 | D137: 1 | F137: Phase1 current crest factor | G137: unsigned integer | H137: 0.001 | I137: - | L137: =3 -> 3
A138: 5509 | B138: 5508 | C138: 1584 | D138: 1 | F138: Phase2 current crest factor | G138: unsigned integer | H138: 0.001 | I138: - | L138: =3 -> 3
A139: 5510 | B139: 5509 | C139: 1585 | D139: 1 | F139: Phase3 current crest factor | G139: unsigned integer | H139: 0.001 | I139: - | L139: =3 -> 3
A140: 5511 | B140: 5510 | C140: 1586 | D140: 1 | F140: Phase1-2 voltage crest factor | G140: unsigned integer | H140: 0.001 | I140: - | L140: =3 -> 3
A141: 5512 | B141: 5511 | C141: 1587 | D141: 1 | F141: Phase2-3 voltage crest factor | G141: unsigned integer | H141: 0.001 | I141: - | L141: =3 -> 3
A142: =B142+1 -> 5513 | B142: =B141+D141 -> 5512 | C142: =DEC2HEX(B142) -> 1588 | D142: 1 | F142: Phase3-1 voltage crest factor | G142: unsigned integer | H142: 0.001 | I142: - | L142: =3 -> 3
A143: =B143+1 -> 20481 | B143: =GENERAL!A21 -> 20480 | C143: =GENERAL!B21 -> 5000 | D143: =SUM(D144) -> 1 | F143: =GENERAL!E21 -> Request of integrated data (energy and average power)
A144: 20481 | B144: 20480 | C144: =DEC2HEX(B144) -> 5000 | D144: 1 | F144: Energy stored data page reading | G144: unsigned integer | H144: - | I144: - | K144: See Note 6 | L144: =3 -> 3
A145: 20497 | B145: =GENERAL!A22 -> 20496 | C145: =GENERAL!B22 -> 5010 | D145: =SUM(D146) -> 1 | F145: =GENERAL!E22 -> Request of real time data
A146: 20497 | B146: 20496 | C146: 5010 | D146: 1 | F146: Real Time Stored data page reading | G146: unsigned integer | H146: - | I146: - | K146: See Note 7 | L146: =3 -> 3
A147: 28673 | B147: =GENERAL!A24 -> 28672 | C147: =GENERAL!B24 -> 7000 | D147: =SUM(D148:D350) -> 200 | F147: =GENERAL!E24 -> Harmonics - Only with F4N107 Module
A148: 28673 | B148: 28672 | C148: 7000 | D148: 1 | F148: Current phase 1 - fundamental | G148: unsigned integer | H148: 0.1 | I148: % | L148: =3 -> 3
A149: =B149+1 -> 28674 | B149: =B148+D148 -> 28673 | C149: =DEC2HEX(B149) -> 7001 | D149: 1 | F149: Current phase 1 - 2nd harmonic percentage | G149: unsigned integer | H149: 0.1 | I149: % | L149: =3 -> 3
A150: 28675 | B150: 28674 | C150: 7002 | D150: 1 | F150: Current phase 1 - 3rd harmonic percentage | G150: unsigned integer | H150: 0.1 | I150: % | L150: =3 -> 3
A151: 28676 | B151: 28675 | C151: 7003 | D151: 1 | F151: Current phase 1 - 4th harmonic percentage | G151: unsigned integer | H151: 0.1 | I151: % | L151: =3 -> 3
A152: 28677 | B152: 28676 | C152: 7004 | D152: 1 | F152: Current phase 1 - 5th harmonic percentage | G152: unsigned integer | H152: 0.1 | I152: % | L152: =3 -> 3
A153: 28678 | B153: 28677 | C153: 7005 | D153: 1 | F153: Current phase 1 - 6th harmonic percentage | G153: unsigned integer | H153: 0.1 | I153: % | L153: =3 -> 3
A154: 28679 | B154: 28678 | C154: 7006 | D154: 1 | F154: Current phase 1 - 7th harmonic percentage | G154: unsigned integer | H154: 0.1 | I154: % | L154: =3 -> 3
A155: 28680 | B155: 28679 | C155: 7007 | D155: 1 | F155: Current phase 1 - 8th harmonic percentage | G155: unsigned integer | H155: 0.1 | I155: % | L155: =3 -> 3
A156: 28681 | B156: 28680 | C156: 7008 | D156: 1 | F156: Current phase 1 - 9th harmonic percentage | G156: unsigned integer | H156: 0.1 | I156: % | L156: =3 -> 3
A157: 28682 | B157: 28681 | C157: 7009 | D157: 1 | F157: Current phase 1 - 10th harmonic percentage | G157: unsigned integer | H157: 0.1 | I157: % | L157: =3 -> 3
A158: 28683 | B158: 28682 | C158: 700A | D158: 1 | F158: Current phase 1 - 11th harmonic percentage | G158: unsigned integer | H158: 0.1 | I158: % | L158: =3 -> 3
A159: 28684 | B159: 28683 | C159: 700B | D159: 1 | F159: Current phase 1 - 12th harmonic percentage | G159: unsigned integer | H159: 0.1 | I159: % | L159: =3 -> 3
A160: 28685 | B160: 28684 | C160: 700C | D160: 1 | F160: Current phase 1 - 13th harmonic percentage | G160: unsigned integer | H160: 0.1 | I160: % | L160: =3 -> 3
A161: 28686 | B161: 28685 | C161: 700D | D161: 1 | F161: Current phase 1 - 14th harmonic percentage | G161: unsigned integer | H161: 0.1 | I161: % | L161: =3 -> 3
A162: 28687 | B162: 28686 | C162: 700E | D162: 1 | F162: Current phase 1 - 15th harmonic percentage | G162: unsigned integer | H162: 0.1 | I162: % | L162: =3 -> 3
A163: 28688 | B163: 28687 | C163: 700F | D163: 1 | F163: Current phase 1 - 16th harmonic percentage | G163: unsigned integer | H163: 0.1 | I163: % | L163: =3 -> 3
A164: 28689 | B164: 28688 | C164: 7010 | D164: 1 | F164: Current phase 1 - 17th harmonic percentage | G164: unsigned integer | H164: 0.1 | I164: % | L164: =3 -> 3
A165: 28690 | B165: 28689 | C165: 7011 | D165: 1 | F165: Current phase 1 - 18th harmonic percentage | G165: unsigned integer | H165: 0.1 | I165: % | L165: =3 -> 3
A166: 28691 | B166: 28690 | C166: 7012 | D166: 1 | F166: Current phase 1 - 19th harmonic percentage | G166: unsigned integer | H166: 0.1 | I166: % | L166: =3 -> 3
A167: 28692 | B167: 28691 | C167: 7013 | D167: 1 | F167: Current phase 1 - 20th harmonic percentage | G167: unsigned integer | H167: 0.1 | I167: % | L167: =3 -> 3
A168: 28693 | B168: 28692 | C168: 7014 | D168: 1 | F168: Current phase 1 - 21st harmonic percentage | G168: unsigned integer | H168: 0.1 | I168: % | L168: =3 -> 3
A169: 28694 | B169: 28693 | C169: 7015 | D169: 1 | F169: Current phase 1 - 22nd harmonic percentage | G169: unsigned integer | H169: 0.1 | I169: % | L169: =3 -> 3
A170: 28695 | B170: 28694 | C170: 7016 | D170: 1 | F170: Current phase 1 - 23rd harmonic percentage | G170: unsigned integer | H170: 0.1 | I170: % | L170: =3 -> 3
A171: 28696 | B171: 28695 | C171: 7017 | D171: 1 | F171: Current phase 1 - 24th harmonic percentage | G171: unsigned integer | H171: 0.1 | I171: % | L171: =3 -> 3
A172: 28697 | B172: 28696 | C172: 7018 | D172: 1 | F172: Current phase 1 - 25th harmonic percentage | G172: unsigned integer | H172: 0.1 | I172: % | L172: =3 -> 3
A173: 28698 | B173: 28697 | C173: 7019 | D173: 1 | F173: Current phase 1 - 26th harmonic percentage | G173: unsigned integer | H173: 0.1 | I173: % | L173: =3 -> 3
A174: 28699 | B174: 28698 | C174: 701A | D174: 1 | F174: Current phase 1 - 27th harmonic percentage | G174: unsigned integer | H174: 0.1 | I174: % | L174: =3 -> 3
A175: 28700 | B175: 28699 | C175: 701B | D175: 1 | F175: Current phase 1 - 28th harmonic percentage | G175: unsigned integer | H175: 0.1 | I175: % | L175: =3 -> 3
A176: 28701 | B176: 28700 | C176: 701C | D176: 1 | F176: Current phase 1 - 29th harmonic percentage | G176: unsigned integer | H176: 0.1 | I176: % | L176: =3 -> 3
A177: 28702 | B177: 28701 | C177: 701D | D177: 1 | F177: Current phase 1 - 30th harmonic percentage | G177: unsigned integer | H177: 0.1 | I177: % | L177: =3 -> 3
A178: 28703 | B178: 28702 | C178: 701E | D178: 1 | F178: Current phase 1 - 31st harmonic percentage | G178: unsigned integer | H178: 0.1 | I178: % | L178: =3 -> 3
A179: 28704 | B179: 28703 | C179: 701F | D179: 1 | F179: Current phase 1 - 32nd harmonic percentage | G179: unsigned integer | H179: 0.1 | I179: % | L179: =3 -> 3
A180: 28705 | B180: 28704 | C180: 7020 | D180: 1 | F180: Current phase 1 - 33rd harmonic percentage | G180: unsigned integer | H180: 0.1 | I180: % | L180: =3 -> 3
A181: 28706 | B181: 28705 | C181: 7021 | D181: 1 | F181: Current phase 1 - 34th harmonic percentage | G181: unsigned integer | H181: 0.1 | I181: % | L181: =3 -> 3
A182: 28707 | B182: 28706 | C182: 7022 | D182: 1 | F182: Current phase 1 - 35th harmonic percentage | G182: unsigned integer | H182: 0.1 | I182: % | L182: =3 -> 3
A183: 28708 | B183: 28707 | C183: 7023 | D183: 1 | F183: Current phase 1 - 36th harmonic percentage | G183: unsigned integer | H183: 0.1 | I183: % | L183: =3 -> 3
A184: 28709 | B184: 28708 | C184: 7024 | D184: 1 | F184: Current phase 1 - 37th harmonic percentage | G184: unsigned integer | H184: 0.1 | I184: % | L184: =3 -> 3
A185: 28710 | B185: 28709 | C185: 7025 | D185: 1 | F185: Current phase 1 - 38th harmonic percentage | G185: unsigned integer | H185: 0.1 | I185: % | L185: =3 -> 3
A186: 28711 | B186: 28710 | C186: 7026 | D186: 1 | F186: Current phase 1 - 39th harmonic percentage | G186: unsigned integer | H186: 0.1 | I186: % | L186: =3 -> 3
A187: 28712 | B187: 28711 | C187: 7027 | D187: 1 | F187: Current phase 1 - 40th harmonic percentage | G187: unsigned integer | H187: 0.1 | I187: % | L187: =3 -> 3
A188: 28713 | B188: 28712 | C188: 7028 | D188: 1 | F188: Current phase 1 - 41st harmonic percentage | G188: unsigned integer | H188: 0.1 | I188: % | L188: =3 -> 3
A189: 28714 | B189: 28713 | C189: 7029 | D189: 1 | F189: Current phase 1 - 42nd harmonic percentage | G189: unsigned integer | H189: 0.1 | I189: % | L189: =3 -> 3
A190: 28715 | B190: 28714 | C190: 702A | D190: 1 | F190: Current phase 1 - 43rd harmonic percentage | G190: unsigned integer | H190: 0.1 | I190: % | L190: =3 -> 3
A191: 28716 | B191: 28715 | C191: 702B | D191: 1 | F191: Current phase 1 - 44th harmonic percentage | G191: unsigned integer | H191: 0.1 | I191: % | L191: =3 -> 3
A192: 28717 | B192: 28716 | C192: 702C | D192: 1 | F192: Current phase 1 - 45th harmonic percentage | G192: unsigned integer | H192: 0.1 | I192: % | L192: =3 -> 3
A193: 28718 | B193: 28717 | C193: 702D | D193: 1 | F193: Current phase 1 - 46th harmonic percentage | G193: unsigned integer | H193: 0.1 | I193: % | L193: =3 -> 3
A194: 28719 | B194: 28718 | C194: 702E | D194: 1 | F194: Current phase 1 - 47th harmonic percentage | G194: unsigned integer | H194: 0.1 | I194: % | L194: =3 -> 3
A195: 28720 | B195: 28719 | C195: 702F | D195: 1 | F195: Current phase 1 - 48th harmonic percentage | G195: unsigned integer | H195: 0.1 | I195: % | L195: =3 -> 3
A196: 28721 | B196: 28720 | C196: 7030 | D196: 1 | F196: Current phase 1 - 49th harmonic percentage | G196: unsigned integer | H196: 0.1 | I196: % | L196: =3 -> 3
A197: 28722 | B197: 28721 | C197: 7031 | D197: 1 | F197: Current phase 1 - 50th harmonic percentage | G197: unsigned integer | H197: 0.1 | I197: % | L197: =3 -> 3
A199: =B199+1 -> 28737 | B199: 28736 | C199: 7040 | D199: 1 | F199: Current phase 2 - fundamental | G199: unsigned integer | H199: 0.1 | I199: % | L199: =3 -> 3
A200: =B200+1 -> 28738 | B200: =B199+D199 -> 28737 | C200: =DEC2HEX(B200) -> 7041 | D200: 1 | F200: Current phase 2 - 2nd harmonic percentage | G200: unsigned integer | H200: 0.1 | I200: % | L200: =3 -> 3
A201: 28739 | B201: 28738 | C201: 7042 | D201: 1 | F201: Current phase 2 - 3rd harmonic percentage | G201: unsigned integer | H201: 0.1 | I201: % | L201: =3 -> 3
... 620 more rows

Sheet HOLDING REGISTERS - Words (R&W)
A1: Register Number | B1: Register Address (Dec) | C1: Register Address (Hex) | D1: Dimension [word] | E1: Bit Position | F1: Description | G1: Type | H1: Scale | I1: Unit | J1: Range | K1: Note | L1: Read Function Codes (Dec) | M1: Write Function Codes (Hex) | N1: Data Storing (2)
A2: =B2+1 -> 257 | B2: =HEX2DEC(C2) -> 256 | C2: 100 | D2: =SUM(D3:D4) -> 2 | F2: Current & Voltage Transf. Ratio
A3: 257 | B3: 256 | C3: =DEC2HEX(B3) -> 100 | D3: 1 | F3: Write Current transformer ratio - CT | G3: unsigned integer | H3: 1 | I3: - | J3: 1 ÷ 9999 | K3: CT = I prim / I sec ex: 500 A / 5 A ® CT = 100 | L3: 3 | M3: 10
A4: 259 | B4: 258 | C4: =DEC2HEX(B4) -> 102 | D4: 1 | F4: Write Voltage transformer ratio - VT | G4: unsigned integer | H4: 0.01 | I4: - | J4: 100 ÷ 1000 | K4: VT = V prim / V sec ex: 600 V /100 V VT = 6.00 ® WRITE 600 --- If tranformer not present VT = 1.00 ® WRITE 100 | L4: 3 | M4: 10
A5: 1297 | B5: =GENERAL!A6 -> 1296 | C5: =GENERAL!B6 -> 510 | D5: =SUM(D6:D6) -> 1 | F5: =GENERAL!E6 -> Reset of one Pulse Couter
A6: 1297 | B6: 1296 | C6: =DEC2HEX(B6) -> 510 | D6: 1 | F6: Reset of one Pulse Couter | G6: unsigned integer | H6: - | I6: - | J6: - | K6: See Note 6 | L6: 3 | M6: 10
A7: 4208 | B7: =GENERAL!A8 -> 4207 | C7: =GENERAL!B8 -> 106f | D7: =SUM(D8:D23) -> 184 | F7: =GENERAL!E8 -> Open / Close a relays of I/O Module
A8: 4208 | B8: 4207 | C8: =DEC2HEX(B8) -> 106F | D8: 1 | F8: Output status | G8: unsigned integer | H8: - | I8: - | J8: - | K8: See Note 15 | L8: 3 | M8: 10
A9: =B9+1 -> 8193 | B9: =GENERAL!A14 -> 8192 | C9: =GENERAL!B14 -> 2000 | D9: =SUM(D10:D10) -> 16 | F9: =GENERAL!E14 -> Standard Setup parameters (read & write 16 byte at once)
A10: 8193 | B10: 8192 | C10: =DEC2HEX(B10) -> 2000 | D10: 16 | F10: Standard Setup Parameters | G10: unsigned integer | H10: - | I10: - | J10: - | K10: See Note 1 | L10: 3 | M10: 10
A11: =B11+1 -> 8449 | B11: =GENERAL!A15 -> 8448 | C11: =GENERAL!B15 -> 2100 | D11: =SUM(D12:D12) -> 24 | F11: =GENERAL!E15 -> Programming Parameters of Module on Slot B
A12: 8449 | B12: 8448 | C12: =DEC2HEX(B12) -> 2100 | D12: 24 | F12: Programming parameters of Module on Slot B | G12: unsigned integer | H12: - | I12: - | J12: - | K12: See Note 2 | L12: 3 | M12: 10
A13: 8705 | B13: =GENERAL!A16 -> 8704 | C13: =GENERAL!B16 -> 2200 | D13: =SUM(D14:D14) -> 24 | F13: =GENERAL!E16 -> Programming Parameters of Module on Slot C
A14: =B14+1 -> 8705 | B14: 8704 | C14: =DEC2HEX(B14) -> 2200 | D14: 24 | F14: Programming parameters of Module on Slot C | G14: unsigned integer | H14: - | I14: - | J14: - | K14: See Note 2 | L14: 3 | M14: 10
A15: 8961 | B15: =GENERAL!A17 -> 8960 | C15: =GENERAL!B17 -> 2300 | D15: =SUM(D16:D16) -> 24 | F15: =GENERAL!E17 -> Programming Parameters of Module on Slot D
A16: =B16+1 -> 8961 | B16: 8960 | C16: =DEC2HEX(B16) -> 2300 | D16: 24 | F16: Programming parameters of Module on Slot D | G16: unsigned integer | H16: - | I16: - | J16: - | K16: See Note 2 | L16: 3 | M16: 10
A17: 9217 | B17: =HEX2DEC(C17) -> 9216 | C17: 2400 | D17: =SUM(D18:D18) -> 1 | F17: Reset parameters
A18: 9217 | B18: 9216 | C18: =DEC2HEX(B18) -> 2400 | D18: 1 | F18: Reset Hour Meter, Maximum Powers, Maximum Voltages, Maximum Currents, Minimum Voltages, Active Partial Energy, Reactive Partial Energy | G18: unsigned integer | H18: - | I18: - | J18: - | K18: See Note 3 | L18: 3 | M18: 10
A19: =B19+1 -> 9729 | B19: =HEX2DEC(C19) -> 9728 | C19: 2600 | D19: =SUM(D20:D20) -> 1 | F19: Saving parameters
A20: 9729 | B20: 9728 | C20: =DEC2HEX(B20) -> 2600 | D20: 1 | F20: Saving in EEPROM parameters changed by Remote commands | G20: unsigned integer | H20: - | I20: - | J20: - | K20: See Note 4 | L20: 3 | M20: 10
A21: =B21+1 -> 9985 | B21: =HEX2DEC(C21) -> 9984 | C21: 2700 | D21: =SUM(D22:D22) -> 1 | F21: Enable writing
A22: 9985 | B22: 9984 | C22: =DEC2HEX(B22) -> 2700 | D22: 1 | F22: Enable Remote Writing Operation | G22: unsigned integer | H22: - | I22: - | J22: - | K22: See Note 4 & Note 5 | L22: 3 | M22: 10
A23: =B23+1 -> 10241 | B23: =HEX2DEC(C23) -> 10240 | C23: 2800 | D23: =SUM(D24:D24) -> 1 | F23: Restore default parameters
A24: 10241 | B24: 10240 | C24: =DEC2HEX(B24) -> 2800 | D24: 1 | F24: Restore default parameters | G24: unsigned integer | H24: - | I24: - | J24: - | K24: See Note 5 | L24: 3 | M24: 10
A25: =B25+1 -> 12545 | B25: =GENERAL!A18 -> 12544 | C25: =GENERAL!B18 -> 3100 | D25: =SUM(D26:D26) -> 1 | F25: =GENERAL!E18 -> Set Relay on LOCAL or REMOTE control
A26: 12545 | B26: 12544 | C26: =DEC2HEX(B26) -> 3100 | D26: 1 | F26: Set Relay on LOCAL or REMOTE control | G26: unsigned integer | H26: - | I26: - | J26: - | K26: See Note 7 | L26: 3 | M26: 10
A27: 12801 | B27: =GENERAL!A19 -> 12800 | C27: =GENERAL!B19 -> 3200 | D27: =SUM(D28:D28) -> 1 | F27: =GENERAL!E19 -> Open / Close a relays of I/O Module
A28: 12801 | B28: 12800 | C28: =DEC2HEX(B28) -> 3200 | D28: 1 | F28: Open / Close a relays of I/O Module | G28: unsigned integer | H28: - | I28: - | J28: - | K28: See Note 8 | L28: 3 | M28: 10
A29: =B29+1 -> 14081 | B29: =GENERAL!A20 -> 14080 | C29: =GENERAL!B20 -> 3700 | D29: =SUM(D30:D30) -> 1 | F29: =GENERAL!E20 -> Real time data: bit mapped variable reading/writing
A30: 14081 | B30: 14080 | C30: =DEC2HEX(B30) -> 3700 | D30: 1 | F30: Real time data selection | G30: unsigned integer | H30: - | I30: - | J30: - | K30: See Note 16 | L30: 3 | M30: 10
A31: =B31+1 -> 20769 | B31: =GENERAL!A23 -> 20768 | C31: =GENERAL!B23 -> 5120 | D31: =SUM(D32:D40) -> 74 | F31: =GENERAL!E23 -> Stored data
A32: =B32+1 -> 20769 | B32: 20768 | C32: =DEC2HEX(B32) -> 5120 | D32: 6 | F32: Current date and time | G32: unsigned integer | H32: - | I32: - | J32: - | K32: See Note 9 | L32: 3 | M32: 10
A33: 20801 | B33: 20800 | C33: 5140 | D33: 2 | F33: Saving interval period and record data type | G33: unsigned integer | H33: - | I33: - | J33: - | K33: See Note 10 | L33: 3 | M33: 10
A34: =B34+1 -> 20803 | B34: 20802 | C34: 5142 | D34: 2 | F34: Saving energy data interval | G34: unsigned integer | H34: - | I34: - | J34: - | K34: See Note 11 | M34: 10
A35: =B35+1 -> 21761 | B35: 21760 | C35: 5500 | D35: 12 | F35: Initial date and time for energy data reading | G35: unsigned integer | H35: - | I35: - | J35: - | K35: See Note 9 | L35: 3 | M35: 10
A36: =B36+1 -> 21777 | B36: 21776 | C36: 5510 | D36: 12 | F36: Date and time for start of Daylight Saving Time period | G36: unsigned integer | H36: - | I36: - | J36: - | K36: See Note 12 | L36: 3 | M36: 10
A37: =B37+1 -> 21793 | B37: 21792 | C37: 5520 | D37: 12 | F37: Date and time for end of Daylight Saving Time period | G37: unsigned integer | H37: - | I37: - | J37: - | K37: See Note 12 | L37: 3 | M37: 10
A38: =B38+1 -> 23041 | B38: 23040 | C38: 5A00 | D38: 12 | F38: Initial date and time for real time data | G38: unsigned integer | H38: - | I38: - | J38: - | K38: See Note 9 | L38: 3 | M38: 10
A39: =B39+1 -> 23297 | B39: 23296 | C39: 5B00 | D39: 8 | F39: Reset all energy data memory | G39: unsigned integer | H39: - | I39: - | J39: - | K39: See Note 13 | L39: 3 | M39: 10
A40: =B40+1 -> 23553 | B40: 23552 | C40: 5C00 | D40: 8 | F40: Reset all real time data memory | G40: unsigned integer | H40: - | I40: - | J40: - | K40: See Note 14 | L40: 3 | M40: 10
B43: Note 1 - Standard Setup Parameters
B44: Readable / Writable in a 16 WORDS format : TX: FF 03 20 00 00 10 RX: FF 03 20 | 00 00 | 00 05 | 00 00 | 00 03 | 00 0A | 00 00 | 00 00 | 00 00 | 00 01 | 00 01 | 00 03 | 00 05 | 00 03 | 00 02 | 00 01 | 00 00 The answer is in the following format : FF 03 20 W0 W1 W2 W3 W4 W5 W6 W7 W8 W9 W10 W11 W12 W13 W14 W15 The meaning of the WORDs is the following: W0,W1,W2,W3,W4,W5 and W15: no meaning
B45: W14 : Measure on line 1 of custom page 0: V phase 1 1: V12 2: I phase 1 3: I Neutral 4: P 3-phase 5: Q 3-phase 6: S 3-phase 7: P phase 1 8: Q phase 1 9: S phase 1 10: PF 3-phase | F45: W13 : Measure on line 2 of custom page 0: V phase 2 1: V23 2: I phase 2 3: P 3-phase 4: Q 3-phase 5: S 3-phase 6: P phase 2 7: Q phase 2 8: S phase 2 9: Frequency 10: I phase 1 | G45: W12 : Measure on line 3 of custom page 0 => V phase 3 1 => V31 2 => I phase 3 3 => P 3-phase 4 => Q 3-phase 5 => S 3-phase 6 => P phase 3 7 => Q phase 3 8 => S phase 3 9 => P phase 1 10 => I phase 1
B46: W11 : Insertion type 0: 3N3E 1: 3-3E 2: 3-2E 3: 1N1E 4: 3N1E 5: 3-1E | F46: W10 : Average and Max. demand calculation time 0: 5 minutes 1: 8 minutes 2: 10 minutes 3: 15 minutes 4: 20 minutes 5: 30 minutes 6: 60 minutes | G46: W9 : Display contrast 0: level 0 1: level 1 2: level 2 3: level 3
B47: W8 : Backlight intensity 0: 0% 1: 30% 2: 70% 3: 100% | F47: W7 : Rated TA current 0: 5A 1: 1A
B48: Note 2 - Programming parameters of Add-on Modules
B49: · Analogue Output Module Readable / Writable in a 24 WORDS format - the answer is in the following format: W0 W1 W2 W3 | W4 W5 W6 W7 W8 W9 W10 W11 W12 W13 | W14 W15 W16 W17 W18 W19 W20 W21 W22 W23 The meaning of the WORDs is the following: W14 to W23 for OUT 1 W4 to W13 for OUT 2 W0,W1,W2 and W3: no meaning
B50: W23 & W13: Output range 0: 4÷20 mA 1: 0÷20 mA | F50: W22 & W12: Associated quantity 0: V phase 1 1: V phase 2 2: V phase 3 3: I phase 1 4: I phase 2 5: I phase 3 6: V12 7: V23 8: V31 9: P phase 1 10: P phase 2 11: P phase 3 12: Q phase 1 13: Q phase 2 14: Q phase 3 15: P 3-phase 16: Q 3-phase 17: PF 3-phase 18: Frequency 19: Active Power PMD 20: Reactive Power PMD 21: Current PMD 22: Temperature Ch1 23: Temperature Ch2 | G50: W21 & W11: Sign for Begin scale (only for Powers) 0: positive 1: negative
B51: W20 & W10: Deimal point position 0: X.XXX 1: XX.XX 2: XXX.X | F51: W19 & W9: Measuring Unit 0: k (for Powers), Inductive (for PF), V (for volatges), A (for currents), Hz (for Frequency) 1: M (for Powers), Capacitive (for PF), kV (for volatges), kA (for currents), Hz (for Frequency) | G51: W18 & W8 Starting Value 0 to 9999
B52: W17 & W7: Sign for Ending scale (only for Powers) 0: positive 1: negative | F52: W16 & W6: Deimal point position 0: X.XXX 1: XX.XX 2: XXX.X | G52: W15 & W5 Measuring Unit 0: k (for Powers), Inductive (for PF), V (for volatges), A (for currents), Hz (for Frequency) 1: M (for Powers), Capacitive (for PF), kV (for volatges), kA (for currents), Hz (for Frequency)
B53: W14 & W4: Ending Value 0 to 9999
B55: · I/O Module Readable / Writable in a 24 WORDS format - the answer is in the following format: W0 W1 W2 W3 | W4 W5 W6 W7 W8 W9 W10 W11 W12 W13 | W14 W15 W16 W17 W18 W19 W20 W21 W22 W23 The meaning of the WORDs is the following: W14 to W23 for ALARM OUT 1 W4 to W13 for ALARM OUT 2 W0,W1,W2 and W3: no meaning
B56: W23 & W13: Associated quantity 0: V phase 1 1: V phase 2 2: V phase 3 3: I phase 1 4: I phase 2 5: I phase 3 6: V12 7: V23 8: V31 9: P phase 1 10: P phase 2 11: P phase 3 12: Q phase 1 13: Q phase 2 14: Q phase 3 15: P 3-phase 16: Q 3-phase 17: PF 3-phase 18: Frequency 19: Active Power PMD 20: Reactive Power PMD 21: Current PMD 22: Temperature Ch1 23: Temperature Ch2 | F56: W22 & W12: Sign for Begin scale (for Powers and Temperatures) 0: positive 1: negative | G56: W21 & W11: Deimal point position 0: X.XXX 1: XX.XX 2: XXX.X
B57: W20 & W10: Measuring Unit 0: k (for Powers), Inductive (for PF), V (for volatges), A (for currents), Hz (for Frequency) 1: M (for Powers), Capacitive (for PF), kV (for volatges), kA (for currents), Hz (for Frequency) | F57: W19 & W9: Alarm setpoint 0 to 9999 | G57: W18 & W8 Alarm on 0: Lower than set point 1: Higher than set point
B58: W17 & W7: Relay Status 0: Normally Open - NO 1: Normally Close - NC | F58: W16 & W6: Hysteresis 0÷10: 0% ÷ 10% 11: 15% 12: 20% | G58: W15 & W5: Alarm activation delay 0 - 99 s
B59: W14 & W4: Alarm deactivation delay 0 - 99 s
B61: · Pulse output Module Readable / Writable in a 24 WORDS format - the answer is in the following format: W0 W1 W2 W3 W4 W5 W6 W7 W8 W9 W10 W11 W12 W13 W14 W15 W16 W17 | W18 W19 W20 | W21 W22 W23 The meaning of the WORDs is the following: W21 to W23 for PULSE OUT 1 W18 to W20 for PULSE OUT 2 W0 to W17: no meaning
B62: W23 & W20: Pulse active on 0: Active Energy 1: Reactive Energy | F62: W22 & W19: Pulse weight 0: 0.01 kWh 1: 0.10 kWh 2: 1.00 kWh 3: 10.0 kWh 4: 0.10 MWh 5: 1.00 MWh 6: 10.0 MWh | G62: W21 & W18: Pulse duration 0: 50 ms 1: 100 ms 2: 200 ms 3: 300 ms 4: 400 ms 5: 500ms
B64: Note 3 - Reset Parameters
B65: To reset desired measurements write the following word (in binary): 0|0|0|0|0|0|0|0|b8|b7|b6|b5|b4|b3|b2|b1|b0 b0 = 1 => Reset Hour Meter b1 = 1 => Reset Peak Maximum Demand b2 = 1 => Reset Maximum Voltage values b3 = 1 => Reset Maximum Current values b4 = 1 => Reset Minimum Voltage values b5 = 1 => Reset Active Partial Energy b6 = 1 => Reset Reactive Partial Energy b7 = 1 => Reset Counter Input 1 ( Sw > 1.02 ) b8 = 1 => Reset Counter Input 2 ( Sw > 1.02 ) b9 ÷ b15 = 0
B67: Note 4 - Configuration Procedure
B68: 1) "Master Unlock Key” command (write the value = 0x5AA5 in the register 0x2700)
B69: 2) Write the new Configuration (one or more registers...)
B70: 3) "Master Unlock Key” command (write the value = 0x5AA5 in the register 0x2700)
B71: 4) Save/Confirm the new Configuration (writing the value 0x000A in the register 0x2600)
B72: 5) The new Configuration is now available
B74: Note 5 - Restore default parameters
B75: 1) "Master Unlock Key” command (write the value = 0x5AA5 in the register 0x2700)
B76: 2) Return to the Default configuration (writing the value 0x000B in the register 0x2800)
B77: 3) The Default configuration has been restored
B79: Note 6 - Reset of one Pulse Couter
B80: 1) "Master Unlock Key” command (write the value = 0x5AA5 in the register 0x2700)
B81: 2) Write the command (one for each pulse input counter): FF 10 0510 0001 02 W0 where W0: 0010 to reset Pulse Counter 1 on Slot C 0001 to reset Pulse Counter 2 on Slot C 1000 to reset Pulse Counter 1 on Slot D 0100 to reset Pulse Counter 2 on Slot D
B83: Note 7 - Set Relay on LOCAL or REMOTE control
B84: 1) "Master Unlock Key” command (write the value = 0x5AA5 in the register 0x2700)
B85: 2) Write the command: FF 10 3100 0001 02 W0 where W0: 00AA to set Relays on Slot C remotely controlled 00FF to set Relays on Slot C locallyy controlled AA00 to set Relays on Slot D remotely controlled FF00 to set Relays on Slot D locally controlled NOTE: after this writingthe device resets itself and if relays REMOTE managing is active in the visualization page of alarms state, on the fourth line, a letter “r” appears: eg. ALM1 6-7 r
B87: Note 8 - Open / Close a relays of I/O Module
B88: 1) "Master Unlock Key” command (write the value = 0x5AA5 in the register 0x2700)
B89: 2) Write the command: FF 10 3200 0001 02 W0 where W0: FF88 RELAY 1 OPEN | RELAY 2 OPEN on Slot C FF98 RELAY 1 CLOSE | RELAY 2 OPEN on Slot C FF89 RELAY 1 OPEN | RELAY 2 CLOSE on Slot C FF99 RELAY 1 CLOSE | RELAY 2 CLOSE on Slot C 88FF RELAY 1 OPEN | RELAY 2 OPEN on Slot D 98FF RELAY 1 CLOSE | RELAY 2 OPEN on Slot D 89FF RELAY 1 OPEN | RELAY 2 CLOSE on Slot D 99FF RELAY 1 CLOSE | RELAY 2 CLOSE on Slot D
B91: Note 9 - Current date and time - Initial date and time for energy data reading - Initial date and time for real time data
B92: 1) Write the command: example the date 17 of june 2009 and the time 12:11:47 FF 10 5120 0006 0C 0017 0006 0009 0012 0011 0047
B94: Note 10 - Saving real time data interval and packet data type
B95: 1) Write the command: FF 10 5140 0002 04 W0 W1 where W0: 0000 to set saving time as 2 sec. 0001 to set saving time as 5 sec. 0002 to set saving time as 10 sec. 0003 to set saving time as 30 sec. 0004 to set saving time as 60 sec. 0005 to set saving time as 2 min. 0006 to set saving time as 5 min. 0007 to set saving time as 10 min. | F95: where W1: 0000 to set Type 0 0001 to set Type 1 0002 to set Type 2 0003 to set Type 3 0004 to set Type 4 | G95: Note: - Writing a new value for data record type has the effect to erase the real time data memory. - Writing a new value for saving interval time period has no effect on the stored data that have been already saved in the memory.
B97: Note 11 - Saving energy data interval
B98: 1) Write the command: FF 10 5142 0001 02 W0 where W0: 0000 to set saving time as 5 min. 0001 to set saving time as 10 min. 0002 to set saving time as 15 min.
B100: Note 12 - Daylight Saving Time
B101: 1) STARTING DATE & HOUR - Write the command: example the date 29 of march 2015 and the time 02:00:00 FF 10 5120 0006 0C 0029 0003 0015 0002 0000 0000 2) ENDING DATE & HOUR - Write the command: example the date 25 of october 2015 and the time 03:00:00 FF 10 5120 0006 0C 0025 0010 0015 0003 0000 0000
B103: Note 13 - Reset all energy data memory
B104: 1) Write the command: FF 10 5B00 0004 08 5265 7365 744D 656D
B106: Note 14 - Reset all real time data memory
B107: 1) Write the command: FF 10 5C00 0004 08 5265 7365 7444 6164
B109: Note 15 - Open / Close a relays of I/O Module
B110: This command is available only if are selected the mode rMtb or rMtt for the output relay of I/O Module(s): 1) write: FF 10 106F 0001 02 W0 To close the desired relay write the following word (in binary): b3|b2|b1|b0 0001 => Close relay 1 0010 => Close relay 2 0100 => Close relay 3 1000 => Close relay 4
B112: Note 16 - Real time data: bit mapped variable reading
B113: For Data Type 0, 1, 2, 3 there is a fixed format; Data Type 4 has a variable format for data. This means that in the case of Data Type 4 user can choose which variable to save TO READ THE CONFIGURATION 1) write: FF 03 3700 0005 answer: FF 03 0A W0 W1 W2 W3 W4 To know which variables are saved, write the words in binary. The signifactive bits are from b34 to b0. Example The meaning of bits is the following: b79...b35 no meaning b34 relay status | b33 THD I3 | b32 THD I2 b31 THD I1 | b30 THD V3 | b29 THD V2 | b28 THD V1 | b27 PF3 sect | b26 PF2 sect | b25 PF1 sect | b24 PF3 b23 PF2 | b22 PF1 | b21 Q3 | b20 Q2 | b19 Q1 | b18 P3 | b17 P2 | b16 P1 b15 Freq | b14 Pf sect | b13 PF | b12 S | b11 Q | b10 P | b9 31 | b8 V23 b7 V12 | b6 In | b5 I3 | b4 I2 | b3 I1 | b2 V3 | b1 V2 | b0 V1 Example: Request: FF 03 3700 00 05 Answer (h): FF 03 0A 0000 0000 0005 5555 5555 Answer (b): 00000000 00000000 00000000 00000000 00000000 00000101 01010101 01010101 01010101 01010101 b34 b0 Any record is composed as in the following: b34 Relay status | b32 THD I2 | b30 THD V3 | b28 THD V1 | b26 PF2 sect | b24 PF3 | b22 PF1 | b20 Q2 | b18 P3 | b16 P1 | b14 PF sect | b12 S | b10 P | b8 V23 | b6 In | b4 I2 | b2 V3 | b0 V1
B114: TO WRITE THE CONFIGURATION 1) "Master Unlock Key” command (write the value = 0x5AA5 in the register 0x2700) 2) Write the command: FF 10 3700 0005 0A W0 W1 W2 W3 W4 W5 Where: W0: 00000000 b7 | b6 | b5 | b4 | b3 | b2 | b1 | b0 W1: 00000000 b15 | b14 | b13 | b12 | b11 | b10 | b9 | b8 W2: 00000000 b23 | b22 | b21 | b20 | b19 | b18 | b17 | b16 W3: 00000000 b31 b30 b29 b28 b27 b26 b25 b24 W4: 00000000 0000 | b34 | b33 | b32 Example: Request 1: FF 10 2700 0001 02 5AA5 Answer 1: FF 10 2700 0001 Request 2 (h): FF 10 3700 0005 0A 0055 0055 0055 0055 0005 Answer2 : FF 10 3700 0001 Request 2 (b): 00000000 00000000 00000000 00000000 00000000 00000101 01010101 01010101 01010101 01010101 b34 b0 Any record is composed as in the following: b34 Relay status | b32 THD I2 | b30 THD V3 | b28 THD V1 | b26 PF2 sect | b24 PF3 | b22 PF1 | b20 Q2 | b18 P3 | b16 P1 | b14 PF sect | b12 S | b10 P | b8 V23 | b6 In | b4 I2 | b2 V3 | b0 V1
